Cogmind - Beta 13 @@@ ROGUE MODE // 2024.06.15 @ 00:42:39 Player: karotgaemin Result: Self-destructed Performance ------------- Evolutions (1) 500 Regions Visited (2) 400 Robots Destroyed (14) 70 Value Destroyed (389) 389 Prototype IDs (1) 20 Alien Tech Used (0) 0 Bonus (0) 0 TOTAL SCORE: 1379 Bonus ------- None Cogmind --------- Core Integrity 302/400 Matter 300/300 Energy 250/250 System Corruption 0% Temperature Cool (0) Movement Flying (117) Ox1 Location -9/Materials Parts ------- > --- POWER (1) -------- Ion Engine > --- PROPULSION (3) --- Flight Unit Flight Unit > --- UTILITY (3) ------ Visual Processing Unit Sensor Array Signal Interpreter > --- WEAPON (2) ------- Advanced Beam Cannon > --- INVENTORY (5) ---- Armored Wheel Cooling System Small Storage Unit Small Laser Assault Rifle Peak State ------------ > --- POWER ------------ Ion Engine > --- PROPULSION ------- Armored Wheel Armored Wheel Armored Wheel > --- UTILITY ---------- Visual Processing Unit Sensor Array Signal Interpreter > --- WEAPON ----------- Particle Gun Advanced Beam Cannon > --- INVENTORY -------- Wheel Armored Wheel Small Laser Assault Rifle Assault Rifle [Rating: 16] Favorites ----------- Power Ion Engine Engine Ion Engine Propulsion Wheel Wheel Wheel Hover Unit Hover Unit Flight Unit Flight Unit Utility Sensor Array Device Sensor Array Processor Visual Processing Unit Weapon Assault Rifle Energy Gun Particle Gun Energy Cannon Advanced Beam Cannon Ballistic Gun Assault Rifle Build | -11 -10 -9 ------- Run | Yrd Mat Mat Slots Evolved 2 | . . 2 Power . | . . . Propulsion 1 | . . 1 Utility 1 | . . 1 Weapon . | . . . Parts Attached 20 | 5 4 11 Power 3 | 1 . 2 Engine 3 | 1 . 2 Core . | . . . Reactor . | . . . Propulsion 9 | 2 . 7 Treads . | . . . Leg . | . . . Wheel 5 | 2 . 3 Hover 1 | . . 1 Flight 3 | . . 3 Utility 4 | . 3 1 Device 1 | . 1 . Storage . | . . . Processor 3 | . 2 1 Hackware . | . . . Protection . | . . . Artifact . | . . . Weapon 4 | 2 1 1 Energy Gun 1 | . 1 . Energy Cannon 1 | . . 1 Ballistic Gun 2 | 2 . . Ballistic Cannon . | . . . Launcher . | . . . Special Weapon . | . . . Impact Weapon . | . . . Slashing Weapon . | . . . Piercing Weapon . | . . . Special Melee Weapon . | . . . Unidentified Prototypes 1 | . . 1 Parts Lost 4 | . . 4 Power 1 | . . 1 Propulsion 2 | . . 2 Utility . | . . . Weapon 1 | . . 1 Highest Loss Streak 2 | . . 2 To Critical Strikes . | . . . Average Slot Usage (%) 82 | . 77 87 Engine 12 | . 14 10 Wheel 16 | . 28 8 Flight 9 | . . 16 Device 7 | . 3 11 Processor 13 | . 3 22 Energy Gun 4 | . 1 7 Energy Cannon 5 | . . 9 Ballistic Gun 12 | . 27 1 Naked Turns . | . . . Heaviest Build 13 | 9 11 13 Greatest Support 36 | 20 20 36 Greatest Overweight (x) 3 | 1 . 3 Average Overweight (x) . | . . . Largest Inventory Capacity 5 | 5 5 5 Average Capacity 5 | 5 5 5 Most Carried 5 | 2 5 5 Average Carried 3 | 1 2 4 Final Capacity 5 | 5 5 5 Final Carried 5 | 2 4 5 Class Distribution -------------------- 43% | Mutant 31% | Scavenger-Skirmisher 15% | Scavenger-Mutant 9% | Scavenger-Scout Dominant Class ---------------- Mutant | -10/Materials Scavenger-Skirmisher | -9/Materials Resources | -11 -10 -9 ----------- Run | Yrd Mat Mat Matter Collected 462 | 240 97 125 Remotely . | . . . Salvage Created 432 | . 97 335 Parts 31 | . 10 21 Haulers Intercepted . | . . . Recyclers Shooed . | . . . Parts Field Recycled . | . . . Retrieved Matter . | . . . Parts Self-Destructed . | . . . Prevented . | . . . Kills | -11 -10 -9 ------- Run | Yrd Mat Mat Combat Hostiles Destroyed 12 | . 2 10 Guns 7 | . 2 5 Cannons 5 | . . 5 Classes Destroyed 4 | . 2 2 Watcher 2 | . 1 1 Swarmer 4 | . . 4 Grunt 6 | . 2 4 Sentry 2 | . . 2 Best Kill Streak 4 | . 2 4 Combat Bots Only 4 | . 2 4 Max Kills in Single Turn 1 | . 1 1 Gunslinging . | . . . Exploded . | . . . Melee . | . . . Uniques/NPCs Destroyed . | . . . Combat | -11 -10 -9 -------- Run | Yrd Mat Mat Hostile Shots Fired 76 | . 10 66 Missed 19 | . 2 17 Damage Taken 640 | . 99 541 Core 120 | . 22 98 Absorbed by Shields . | . . . Core Remaining (%) 95 | 100 91 . Volleys Fired 33 | . 10 23 Largest 2 | . 2 2 Hottest 133 | . 40 133 Shots Fired 62 | . 20 42 Gun 43 | . 20 23 Cannon 19 | . . 19 Launcher . | . . . Special . | . . . Kinetic 24 | . 20 4 Thermal 38 | . . 38 Explosive . | . . . Electromagnetic . | . . . Robot Hit Streak 10 | . 8 10 Robot Miss Streak 3 | . 3 2 Penetration Max . | . . . Secondary Targets . | . . . Shots Hit Robots 38 | . 12 26 Core Hits 20 | . 7 13 Critical Kills . | . . . Critical Parts Destroyed . | . . . Critical Strikes . | . . . Melee Attacks . | . . . Impact . | . . . Slashing . | . . . Piercing . | . . . Sneak Attacks . | . . . Combat Hostiles . | . . . Follow-up Attacks . | . . . Damage Inflicted 595 | . 143 452 Guns 391 | . 143 248 Cannons 204 | . . 204 Explosions . | . . . Melee . | . . . Ramming . | . . . Kinetic 176 | . 143 33 Thermal 419 | . . 419 Explosive . | . . . Electromagnetic . | . . . Impact . | . . . Slashing . | . . . Piercing . | . . . Highest Corruption . | . . . Average Corruption . | . . . Corruption Purged . | . . . Corruption Blocked . | . . . Overload Shots . | . . . Overflow Damage 11 | . . 11 Projectiles 11 | . . 11 Explosions . | . . . Melee . | . . . Knockbacks . | . . . Impact . | . . . Kinetic . | . . . Secondary . | . . . Self-Inflicted Damage . | . . . Shots . | . . . Rammed . | . . . Targets Rammed . | . . . Kicked . | . . . Crushed . | . . . Highest Temperature 366 | . 2 366 Average Temperature 133 | . 2 134 Received Heat Transfer 249 | . 54 195 Siege Activations . | . . . Robots Corrupted . | . . . Combat Hostiles . | . . . Parts Fried . | . . . Impact Corruptions . | . . . Robots Melted . | . . . Combat Hostiles . | . . . Parts Melted 2 | . . 2 Heat Transferred 888 | . . 888 Parts Sabotaged . | . . . Parts Stolen . | . . . Parts Stripped . | . . . Power Chain Reactions . | . . . Alert | -11 -10 -9 ------- Run | Yrd Mat Mat Peak Influence 362 | . 118 362 Initial 49 | . . 49 Average 129 | . 40 213 Maximum Alert Level 1 | . . 1 Low Security (%) 75 | 100 100 54 Level 1 24 | . . 45 Level 2 . | . . . Level 3 . | . . . Level 4 . | . . . Level 5 . | . . . High Security . | . . . Max Security . | . . . Squads Dispatched 3 | . 1 2 Investigation 2 | . . 2 Extermination . | . . . Reinforcement 1 | . 1 . Assault . | . . . Garrison . | . . . Intercept . | . . . Searches Triggered . | . . . Construction Impeded . | . . . Haulers Reinforced . | . . . Active Scanning Responses . | . . . Cargo Convoy Interrupts . | . . . Stealth | -11 -10 -9 --------- Run | Yrd Mat Mat Distress Signals 1 | . 1 . Communications Jammed . | . . . Distress Signals . | . . . Times Spotted 24 | . 7 17 Peak Tracking Total 5 | . 3 5 Tactical Retreats 3 | . 1 2 Traps | -11 -10 -9 ------- Run | Yrd Mat Mat Traps Triggered 2 | . . 2 Indirectly . | . . . Trap Hack Attempts . | . . . Triggered . | . . . Disarmed . | . . . Reprogrammed . | . . . Reused . | . . . Traps Extracted . | . . . Installed . | . . . Triggered . | . . . Machines | -11 -10 -9 ---------- Run | Yrd Mat Mat Machines Disabled 1 | . . 1 Max in Single Turn 1 | . . 1 Machines Repaired . | . . . Machines Dismantled . | . . . Machines Sabotaged . | . . . Overloaded Fab Kills . | . . . Hacking | -11 -10 -9 --------- Run | Yrd Mat Mat Machines Accessed . | . . . Terminals . | . . . Fabricators . | . . . Repair Stations . | . . . Recycling Units . | . . . Scanalyzers . | . . . Garrison Access . | . . . Total Hacks . | . . . Successful . | . . . Failed . | . . . Catastrophic . | . . . Database Lockouts . | . . . Manual . | . . . Terminals . | . . . Fabricators . | . . . Repair Stations . | . . . Recycling Units . | . . . Scanalyzers . | . . . Garrison Access . | . . . Terminal Hacks . | . . . Fabricator Hacks . | . . . Repair Station Hacks . | . . . Recycling Unit Hacks . | . . . Scanalyzer . | . . . Garrison Access Hacks . | . . . Unauthorized Hacks . | . . . Terminals . | . . . Fabricators . | . . . Repair Stations . | . . . Recycling Units . | . . . Scanalyzers . | . . . Garrison Access . | . . . Data Cores Recovered . | . . . Used . | . . . Hacking Detections . | . . . Full Trace Events . | . . . Feedback Events . | . . . Feedback Blocked . | . . . Robot Schematics Acquired . | . . . Robots Built . | . . . Authchips . | . . . Time . | . . . Total Robot Build Rating . | . . . Part Schematics Acquired . | . . . Parts Built . | . . . Authchips . | . . . Time . | . . . Total Part Build Rating . | . . . Parts Repaired . | . . . Time . | . . . Parts Recycled . | . . . Recycled Matter . | . . . Retrieved Matter . | . . . Retrieved Components . | . . . Parts Scanalyzed . | . . . Part Schematics Acquired . | . . . Parts Damaged . | . . . Bothacking | -11 -10 -9 ------------ Run | Yrd Mat Mat Used RIF Installer . | . . . Robots Hacked . | . . . Non-combat . | . . . Combat . | . . . Robot Hacks Applied . | . . . Relay Couplers Released . | . . . Fabnet Peak Effective % . | . . . Robots Rewired . | . . . Allies Hacked . | . . . Hacks Repelled . | . . . Allies | -11 -10 -9 -------- Run | Yrd Mat Mat Total Allies . | . . . Largest Group . | . . . Highest-Rated Group . | . . . Highest-Rated Ally . | . . . Total Orders . | . . . Ally Attacks . | . . . Total Damage . | . . . Kills . | . . . Allies Corrupted . | . . . Allies Melted . | . . . Intel | -11 -10 -9 ------- Run | Yrd Mat Mat Robot Analysis Total . | . . . Derelict Logs Recovered . | . . . Drone Launches . | . . . Drone Recoveries . | . . . Exploration | -11 -10 -9 ------------- Run | Yrd Mat Mat Turns Passed 712 | 57 275 380 Spaces Moved 672 | 56 259 357 Core 13 | 13 . . Treads . | . . . Legs . | . . . Wheels 363 | 43 259 61 Hover . | . . . Flight 296 | . . 296 Fastest Speed 34 | 50 80 34 Average Speed 76 | 80 80 72 Slowest Speed 290 | 100 80 290 Overloaded Moves . | . . . Propulsion Burnouts . | . . . Robots Hopped . | . . . Cave-ins Triggered . | . . . Exploration Rate (%) 23 | 4 38 28 Regions Visited 2 Branch Regions . Pre-discovered Areas . | . . . Known Exits Taken . | . . . Unknown Exits Taken 2 | 1 1 . Scrap Searched . | . . . Spaces Dug . | . . . Terrain Destroyed . | . . . Melee . | . . . Projectile . | . . . AOE . | . . . Terrain Rammed . | . . . Walls Destroyed . | . . . Machines Disabled . | . . . Actions | -11 -10 -9 --------- Run | Yrd Mat Mat Total 808 | 67 307 434 Wait 56 | . 27 29 Move 670 | 55 258 357 Hop . | . . . Pick Up 20 | 7 6 7 Fast Attach 4 | . . 4 Attach 11 | 5 3 3 Detach 1 | . 1 . Swap 5 | . 1 4 Drop 8 | . 1 7 Fire 33 | . 10 23 Melee . | . . . Ram . | . . . Kick . | . . . Crush . | . . . Escape Stasis . | . . . Rewire . | . . . Trap . | . . . Miscellaneous . | . . . Route ------- -11/Scrapyard -10/Materials (discovered 2 exits: [*Mat] / [*Min]) -9/Materials (discovered 1 exit: [*Min]) History --------- Turn | Location | Event 12 | -11/Scrapyard | Discovered new exit (range 16) 58 | -11/Scrapyard | Entered Materials 66 | -10/Materials | Discovered new exit (range 14) 158 | -10/Materials | Discovered new exit (range 3) 300 | -10/Materials | Build established: Mutant 333 | -10/Materials | Entered another Materials area 333 | -9/Materials | Evolved 2 slots: Propulsion x1, Utility x1 434 | -9/Materials | Discovered new exit (range 9) 713 | -9/Materials | Self-destructed Last Messages --------------- 00580_ G-34 Mercenary destroyed. 00581_ U-05 Engineer lays Concrete. 00583_ G-34 Mercenary destroyed. 00585_ U-05 Engineer lays Concrete. 00587_ Lgt. Ion Engine destroyed. 00587_ U-05 Engineer lays Concrete. 00589_ Particle Gun destroyed. 00589_ U-05 Engineer lays Concrete. 00595_ Destroyed Heat Sink. 00595_ Ion Engine melted. 00595_ G-34 Mercenary destroyed. 00598_ Acquired Ion Engine. 00600_ Acquired 10 matter. 00617_ K-01 Serf collects debris. 00641_ Acquired Cooling System. 00661_ K-01 Serf collects debris. 00696_ Triggered Alarm Trap. 00696_ An alarm sounds. 00696_ ALERT: Alarm triggered, dispatching investigation squad. Map ----- +----------------------------------------------------+ | ?????????????????# ??????????? | | ?????????????????# ??????????? | | ????????????????? ???######?? | | ????????????????? ??##!!!!##? | | ???????######????# #??# !#? | | ######## #????# #??# #? | | # #????# #??#### #? | | # #????# ####### #? | | # #????# #? | | # #????# ####### #? | | !! """ # #????# #?????##g##? | | != """ # #????# #??????# #?? | | != """ # #????# #????### ##? | | # ###### #????# #? | | #+########+### #????# #? | | #????# #? | | T #????# #? | | #????# #? | | ###+### #### #????# #? | | %[[# #??## ##???## ## | | """%# #???# #????# # | | "" [# #???# #????# # | | """ # #???# #????# # | | =% # #???# #????# # | | =""" # #???# #????# # | | """ # #???# ##???# @ # | | """ # #???# ???### ### | | # #???# ?????#g #?? | | """ # #???# ?????# #?? | | """ # #???## x#?????#x #?? | | """ # #????# #???###x ### | | # #????# ##### # | | ####### #????# # | | ??????? #????# # | | ??????? ?????# T # | | ??????? ?????# # | | ???????????????# ##### # | | ???????????????# #???### ### | | ???????????????# #?????# #?? | | ???????????????# #?????# #?? | | ???????????????# #?????# #?? | | ???????????????# #?????# #?? | | ??????? ?????# #?????# #?? | | ??????# #????# #?????# #?? | | ??????# #????# #?????# #?? | | ??????# ###### #?##### #?? | | ??????# # # #?# # #?? | | ??????# # # #??# #?? | | ??????# # # #??# # #?? | | ??????# # + #??#### #?? | +----------------------------------------------------+ Best States ------------- Heat Dissipation 28 Energy Generation 10 Energy Capacity 250 Matter Stores 300 Matter Capacity 300 Sight Range 18 Robot Scan Range 14 Terrain Scan Density 10 Evasion (%) 63 Targeting Accuracy 5 Item Schematics ----------------- None Robot Schematics ------------------ None Fabricated ------------ Nothing Alien Tech Used ----------------- None Achievements -------------- None Challenges ------------ None Game ------ Seed IonCouplerPlatform Manual? 0 Play Time 00:09:43 Cumulative 13.6 hours Start 2024.06.15 @ 00:36:01 End 2024.06.15 @ 00:42:39 Sessions 1 Manual Loads 0 Difficulty Rogue Special Mode None Game No. 39 Rogue 39 Adventurer 0 Explorer 0 Win Type - Total 0 Types 0/0/0/0/0/0/0/0/0 Lore% 8 Gallery% 24 Achievement% 17 Wizard Run 0 Options --------- Layout 1 ASCII 0 Keyboard 0 Movement Mouse Keybinds 0 Fullscreen 2 Font 24/Smallcaps Map View 50x35 Zoom Use 0% Tactical HUD 1 Map Filters NONE Filters NONE Steam 1 RUN: 3a586295-011c-4913-9e03-5ac56fc920fd